[Event "Fagernes Chess GM-Swiss 2025"]
[Site "Fagernes"]
[Date "2025.04.16"]
[Round "4.17"]
[White "Berget, Eirik"]
[Black "Mitusov, Semen"]
[Result "0-1"]
[Annotator "RC"]
[ECO "B33"]
[WhiteElo "2041"]
[BlackElo "2459"]
[PlyCount "90"]
[EventDate "2025.04.12"]
[EventCountry "NOR"]
[SourceTitle "playchess.com"]
[Source "ChessBase"]
[SourceQuality "1"]
[TimeControl "40/6000+30:2400+30"]

1. e4 {[%emt 0:00:21]} c5 {[%emt 0:02:02]} 2. Nf3 {[%emt 0:00:14]} Nc6 {[%emt 0:00:32]} 3. d4 {[%emt 0:00:16]} cxd4 {[%emt 0:00:05]} 4. Nxd4 {[%emt 0:00:06]} Nf6 {[%emt 0:00:06]} 5. Nc3 {[%emt 0:00:09]} e5 {[%emt 0:00:04]} 6. Nf3 {[%emt 0:00:39]} Bb4 {[%emt 0:01:07]} 7. Bc4 {[%emt 0:00:08]} d6 {[%emt 0:02:00]} 8. h3 {[%emt 0:01:36]} O-O {[%emt 0:05:06]} 9. Bg5 {[%emt 0:00:56]} h6 {[%emt 0:00:34]} 10. Bh4 {[%emt 0:00:21]} g5 {[%emt 0:02:29]} 11. Nxg5 {[%emt 0:00:44]} hxg5 {[%emt 0:00:08]} 12. Bxg5 {[%emt 0:00:05]} Be6 {[%emt 0:00:37]} 13. Bb3 {[%emt 0:01:14]} Kg7 {[%emt 0:09:36]} 14. O-O {[%emt 0:01:22]} Bxc3 {[%emt 0:17:33]} 15. bxc3 {[%emt 0:00:55]} Bxb3 {[%emt 0:06:21]} 16. axb3 {[%emt 0:02:52]} Qd7 {[%emt 0:00:06]} 17. f4 {[%emt 0:13:33]} Nxe4 {[%emt 0:02:32]} 18. fxe5 {[%emt 0:10:30]} Nxg5 {[%emt 0:01:23]} 19. Qh5 {[%emt 0:00:06]} Nxh3+ {[%emt 0:04:20]} 20. gxh3 {[%emt 0:01:36]} Nxe5 {[%emt 0:00:06]} 21. Qg5+ {[%emt 0:00:45]} Ng6 {[%emt 0:00:12]} 22. Qf6+ {[%emt 0:00:47]} Kg8 {[%emt 0:00:52]} 23. Rf3 {[%emt 0:03:06]} Rae8 {[%emt 0:01:40]} 24. Ra4 {[%emt 0:01:54]} Re1+ {[%emt 0:00:43]} 25. Kh2 {[%emt 0:00:57]} Rfe8 {[%emt 0:00:04]} 26. Rg4 {[%emt 0:00:22]} R8e2+ {[%emt 0:00:28]} 27. Rf2 {[%emt 0:00:24]} Rxf2+ {[%emt 0:00:06]} 28. Qxf2 {[%emt 0:00:06]} Qe6 {[%emt 0:00:09]} 29. Rg2 {[%emt 0:00:45]} Qe5+ {[%emt 0:00:17]} 30. Qg3 {[%emt 0:00:12]} Qxg3+ {[%emt 0:00:19]} 31. Kxg3 {[%emt 0:00:33]} Re3+ {[%emt 0:00:05]} 32. Kg4 {[%emt 0:00:11]} Rxc3 {[%emt 0:00:05]} 33. h4 {[%emt 0:00:26]} Kh7 {[%emt 0:00:47]} 34. Kg5 {[%emt 0:00:49]} Rc5+ {[%emt 0:00:46]} 35. Kf6 {[%emt 0:00:10]} Rf5+ {[%emt 0:00:51]} 36. Kxf5 {[%emt 0:00:24]} Nxh4+ {[%emt 0:00:04]} 37. Kf6 {[%emt 0:00:08]} Nxg2 {[%emt 0:00:03]} 38. Kxf7 {[%emt 0:00:08]} Ne3 {[%emt 0:00:16]} 39. Ke6 {[%emt 0:01:22]} d5 {[%emt 0:02:40]} 40. Ke5 {[%emt 0:00:44]} Kg6 {[%emt 0:00:45]} 41. Kd4 {[%emt 0:40:09]} Nxc2+ {[%emt 0:40:05]} 42. Kxd5 {[%emt 0:00:05]} Kf5 {[%emt 0:00:21]} 43. Kd6 {[%emt 0:00:12]} Ke4 {[%emt 0:00:20]} 44. Kc7 {[%emt 0:00:11]} b5 {[%emt 0:00:05]} 45. Kb7 {[%emt 0:01:06]} b4 {[%emt 0:00:42]} 0-1

[Event "Fagernes Chess GM-Swiss 2025"]
[Site "Fagernes"]
[Date "2025.04.16"]
[Round "4.18"]
[White "Lund, Gunnar"]
[Black "Brattgjerd, Isak Vinh"]
[Result "1-0"]
[Annotator "RC"]
[ECO "B13"]
[WhiteElo "2341"]
[BlackElo "2202"]
[PlyCount "119"]
[EventDate "2025.04.12"]
[EventCountry "NOR"]
[SourceTitle "playchess.com"]
[Source "ChessBase"]
[SourceQuality "1"]
[TimeControl "40/6000+30:2400+30"]

1. e4 {[%emt 0:01:54]} c6 {[%emt 0:00:50]} 2. d4 {[%emt 0:00:32]} d5 {[%emt 0:00:20]} 3. exd5 {[%emt 0:03:47]} cxd5 {[%emt 0:00:01]} 4. Bd3 {[%emt 0:00:14]} Nc6 {[%emt 0:00:05]} 5. c3 {[%emt 0:00:01]} Nf6 {[%emt 0:00:05]} 6. h3 {[%emt 0:00:03]} e5 {[%emt 0:00:06]} 7. dxe5 {[%emt 0:00:02]} Nxe5 {[%emt 0:00:06]} 8. Nf3 {[%emt 0:00:07]} Bd6 {[%emt 0:00:04]} 9. O-O {[%emt 0:08:19]} O-O {[%emt 0:00:06]} 10. Nxe5 {[%emt 0:23:18]} Bxe5 {[%emt 0:00:19]} 11. Qf3 {[%emt 0:01:40]} Bc7 {[%emt 0:17:38]} 12. Bf4 {[%emt 0:04:48]} Bxf4 {[%emt 0:01:08]} 13. Qxf4 {[%emt 0:00:29]} Qb6 {[%emt 0:00:08]} 14. b3 {[%emt 0:02:13]} Be6 {[%emt 0:03:50]} 15. Nd2 {[%emt 0:01:58]} Rac8 {[%emt 0:00:20]} 16. Rfc1 {[%emt 0:02:50]} Rc6 {[%emt 0:12:02]} 17. Rc2 {[%emt 0:01:17]} Rfc8 {[%emt 0:02:00]} 18. Rac1 {[%emt 0:00:04]} Nd7 {[%emt 0:07:33]} 19. Nf3 {[%emt 0:11:29]} Nc5 {[%emt 0:01:10]} 20. Qe3 {[%emt 0:01:29]} Bd7 {[%emt 0:15:53]} 21. Ne5 {[%emt 0:14:39]} Re8 {[%emt 0:02:44]} 22. Nxd7 {[%emt 0:11:46]} Rxe3 {[%emt 0:01:03]} 23. Bxh7+ {[%emt 0:00:59]} Kxh7 {[%emt 0:00:02]} 24. Nxb6 {[%emt 0:00:09]} Rd3 {[%emt 0:01:34]} 25. Na4 {[%emt 0:01:04]} Nxa4 {[%emt 0:02:18]} 26. bxa4 {[%emt 0:00:02]} Kg6 {[%emt 0:14:23]} 27. a5 {[%emt 0:07:02]} Ra6 {[%emt 0:14:50]} 28. Rb1 {[%emt 0:01:45]} Rxa5 {[%emt 0:00:46]} 29. Rxb7 {[%emt 0:00:17]} Kf6 {[%emt 0:04:23]} 30. Rb1 {[%emt 0:04:01]} Rc5 {[%emt 0:06:29]} 31. Rbc1 {[%emt 0:00:13]} d4 {[%emt 0:02:11]} 32. cxd4 {[%emt 0:00:19]} Rd1+ {[%emt 0:00:34]} 33. Kh2 {[%emt 0:00:51]} Rxc2 {[%emt 0:01:18]} 34. Rxc2 {[%emt 0:00:02]} Rxd4 {[%emt 0:00:01]} 35. Rc6+ {[%emt 0:00:05]} Kg5 {[%emt 0:01:05]} 36. Rc7 {[%emt 0:04:17]} Rd2 {[%emt 0:00:34]} 37. f4+ {[%emt 0:00:42]} Kxf4 {[%emt 0:00:24]} 38. Rxf7+ {[%emt 0:00:06]} Ke5 {[%emt 0:00:09]} 39. Rxa7 {[%emt 0:00:16]} g5 {[%emt 0:00:04]} 40. a4 {[%emt 0:01:51]} Rd1 {[%emt 0:01:22]} 41. a5 {[%emt 0:41:22]} Ra1 {[%emt 0:04:16]} 42. a6 {[%emt 0:00:00]} Ra3 {[%emt 0:05:58]} 43. Ra8 {[%emt 0:00:00]} Kf6 {[%emt 0:00:47]} 44. Kg1 {[%emt 0:00:00]} Ra2 {[%emt 0:07:47]} 45. Kf1 {[%emt 0:00:00]} Kg7 {[%emt 0:00:33]} 46. a7 {[%emt 0:00:00]} Kh7 {[%emt 0:01:52]} 47. Ke1 {[%emt 0:00:00]} Kg7 {[%emt 0:00:51]} 48. Kd1 {[%emt 0:00:00]} Kh7 {[%emt 0:00:06]} 49. Kc1 {[%emt 0:00:00]} Kg7 {[%emt 0:00:10]} 50. Kb1 {[%emt 0:00:00]} Ra6 {[%emt 0:00:39]} 51. Kb2 {[%emt 0:00:00]} Ra5 {[%emt 0:00:06]} 52. Kb3 {[%emt 0:00:00]} Ra1 {[%emt 0:00:08]} 53. Kb4 {[%emt 0:00:00]} Rb1+ {[%emt 0:01:14]} 54. Kc5 {[%emt 0:00:00]} Ra1 {[%emt 0:00:28]} 55. Kd6 {[%emt 0:00:00]} Ra5 {[%emt 0:08:22]} 56. Ke6 {[%emt 0:00:00]} Ra2 {[%emt 0:02:46]} 57. g3 {[%emt 0:00:00]} Ra5 {[%emt 0:08:13]} 58. Rd8 {[%emt 0:00:00]} Ra6+ {[%emt 0:04:32]} 59. Rd6 {[%emt 0:00:00]} Rxa7 {[%emt 0:00:04]} 60. Rd7+ {[%emt 0:00:00]} 1-0

[Event "Fagernes Chess GM-Swiss 2025"]
[Site "Fagernes"]
[Date "2025.04.16"]
[Round "4.19"]
[White "Lilliehook, Victor"]
[Black "Myagmarsuren, Evsuld"]
[Result "0-1"]
[Annotator "RC"]
[ECO "C55"]
[WhiteElo "1993"]
[BlackElo "2305"]
[PlyCount "102"]
[EventDate "2025.04.12"]
[EventCountry "NOR"]
[SourceTitle "playchess.com"]
[Source "ChessBase"]
[SourceQuality "1"]
[TimeControl "40/6000+30:2400+30"]

1. e4 {[%emt 0:00:01]} e5 {[%emt 0:03:23]} 2. Nf3 {[%emt 0:00:09]} Nc6 {[%emt 0:00:05]} 3. Bc4 {[%emt 0:00:09]} Nf6 {[%emt 0:00:05]} 4. d3 {[%emt 0:00:12]} h6 {[%emt 0:00:42]} 5. O-O {[%emt 0:02:40]} d6 {[%emt 0:00:31]} 6. c3 {[%emt 0:01:21]} g5 {[%emt 0:00:46]} 7. Be3 {[%emt 0:03:57]} Bg7 {[%emt 0:01:11]} 8. Nbd2 {[%emt 0:01:18]} O-O {[%emt 0:09:41]} 9. d4 {[%emt 0:10:29]} exd4 {[%emt 0:05:42]} 10. cxd4 {[%emt 0:02:06]} d5 {[%emt 0:00:57]} 11. exd5 {[%emt 0:03:37]} Nxd5 {[%emt 0:00:15]} 12. Ne4 {[%emt 0:05:51]} Be6 {[%emt 0:16:47]} 13. Nc5 {[%emt 0:11:53]} Nxe3 {[%emt 0:00:32]} 14. Nxe6 {[%emt 0:00:11]} Nxd1 {[%emt 0:00:08]} 15. Nxd8 {[%emt 0:00:08]} Nxb2 {[%emt 0:05:28]} 16. Nxc6 {[%emt 0:04:12]} Nxc4 {[%emt 0:00:19]} 17. Rfc1 {[%emt 0:04:29]} b5 {[%emt 0:00:33]} 18. a4 {[%emt 0:04:11]} a6 {[%emt 0:00:14]} 19. axb5 {[%emt 0:01:48]} axb5 {[%emt 0:00:11]} 20. Rab1 {[%emt 0:00:17]} Na3 {[%emt 0:10:31]} 21. Rb3 {[%emt 0:14:08]} Rfe8 {[%emt 0:03:35]} 22. h3 {[%emt 0:04:48]} Bf8 {[%emt 0:04:26]} 23. Nfe5 {[%emt 0:04:49]} Bd6 {[%emt 0:01:20]} 24. Rf3 {[%emt 0:01:39]} Nc4 {[%emt 0:01:58]} 25. Nxf7 {[%emt 0:04:35]} Bf4 {[%emt 0:02:28]} 26. Nxh6+ {[%emt 0:09:08]} Kh7 {[%emt 0:00:08]} 27. Rxf4 {[%emt 0:00:15]} gxf4 {[%emt 0:00:06]} 28. Ng4 {[%emt 0:00:09]} Kg7 {[%emt 0:07:42]} 29. Nce5 {[%emt 0:05:25]} c5 {[%emt 0:04:37]} 30. Nxc4 {[%emt 0:00:36]} bxc4 {[%emt 0:00:05]} 31. dxc5 {[%emt 0:08:03]} Re4 {[%emt 0:02:22]} 32. f3 {[%emt 0:01:53]} Re2 {[%emt 0:00:20]} 33. c6 {[%emt 0:01:42]} c3 {[%emt 0:06:09]} 34. Rxc3 {[%emt 0:00:41]} Ra1+ {[%emt 0:00:13]} 35. Kh2 {[%emt 0:00:01]} Raa2 {[%emt 0:00:16]} 36. c7 {[%emt 0:01:01]} Rxg2+ {[%emt 0:00:05]} 37. Kh1 {[%emt 0:00:01]} Rgc2 {[%emt 0:00:10]} 38. Rxc2 {[%emt 0:00:52]} Rxc2 {[%emt 0:00:05]} 39. Nf2 {[%emt 0:00:43]} Kf6 {[%emt 0:01:52]} 40. Ne4+ {[%emt 0:00:30]} Kg6 {[%emt 0:02:06]} 41. Nf2 {[%emt 0:06:33]} Rxc7 {[%emt 0:00:11]} 42. Nd3 {[%emt 0:00:30]} Kg5 {[%emt 0:03:22]} 43. Kg2 {[%emt 0:06:48]} Rc2+ {[%emt 0:00:12]} 44. Kf1 {[%emt 0:01:00]} Rh2 {[%emt 0:03:13]} 45. Nf2 {[%emt 0:04:05]} Kh4 {[%emt 0:00:09]} 46. Ng4 {[%emt 0:00:46]} Ra2 {[%emt 0:00:17]} 47. Nf6 {[%emt 0:00:21]} Kg3 {[%emt 0:00:29]} 48. Nh5+ {[%emt 0:00:45]} Kxf3 {[%emt 0:00:00]} 49. Kg1 {[%emt 0:00:04]} Rg2+ {[%emt 0:00:52]} 50. Kh1 {[%emt 0:00:06]} Rg6 {[%emt 0:00:08]} 51. Kh2 {[%emt 0:00:09]} Ke3 {[%emt 0:00:11]} 0-1

[Event "Fagernes Chess GM-Swiss 2025"]
[Site "Fagernes"]
[Date "2025.04.16"]
[Round "4.20"]
[White "Kittilsen, Sigurd"]
[Black "Gandrud, Vegar Koi"]
[Result "1/2-1/2"]
[Annotator "RC"]
[ECO "B90"]
[WhiteElo "2010"]
[BlackElo "2273"]
[PlyCount "50"]
[EventDate "2025.04.12"]
[EventCountry "NOR"]
[SourceTitle "playchess.com"]
[Source "ChessBase"]
[SourceQuality "1"]
[TimeControl "40/6000+30:2400+30"]

1. e4 {[%emt 0:01:39]} c5 {[%emt 0:02:14]} 2. Nf3 {[%emt 0:00:00]} d6 {[%emt 0:00:09]} 3. d4 {[%emt 0:00:00]} cxd4 {[%emt 0:00:04]} 4. Nxd4 {[%emt 0:00:00]} Nf6 {[%emt 0:00:03]} 5. Nc3 {[%emt 0:00:00]} a6 {[%emt 0:00:05]} 6. Be3 {[%emt 0:00:00]} e5 {[%emt 0:00:11]} 7. Nb3 {[%emt 0:00:00]} Be6 {[%emt 0:00:15]} 8. f3 {[%emt 0:00:05]} Be7 {[%emt 0:00:24]} 9. Qd2 {[%emt 0:00:12]} O-O {[%emt 0:00:53]} 10. O-O-O {[%emt 0:00:41]} Nbd7 {[%emt 0:00:39]} 11. g4 {[%emt 0:00:20]} b5 {[%emt 0:00:17]} 12. g5 {[%emt 0:00:27]} b4 {[%emt 0:00:43]} 13. Ne2 {[%emt 0:00:53]} Ne8 {[%emt 0:00:36]} 14. f4 {[%emt 0:00:51]} a5 {[%emt 0:00:06]} 15. f5 {[%emt 0:00:39]} a4 {[%emt 0:00:16]} 16. fxe6 {[%emt 0:00:28]} axb3 {[%emt 0:00:21]} 17. exf7+ {[%emt 0:08:32]} Rxf7 {[%emt 0:02:16]} 18. cxb3 {[%emt 0:00:09]} Rxa2 {[%emt 0:01:05]} 19. Ng3 {[%emt 0:01:55]} Rxf1 {[%emt 0:04:03]} 20. Rhxf1 {[%emt 0:00:56]} Ra1+ {[%emt 0:00:09]} 21. Kc2 {[%emt 0:00:05]} Qc8+ {[%emt 0:00:13]} 22. Kd3 {[%emt 0:00:09]} Qa6+ {[%emt 0:00:11]} 23. Kc2 {[%emt 0:00:09]} Qc6+ {[%emt 0:00:49]} 24. Kd3 {[%emt 0:00:11]} Qa6+ {[%emt 0:03:50]} 25. Kc2 {[%emt 0:00:07]} Qc6+ {[%emt 0:00:06]} 1/2-1/2

[Event "Fagernes Chess GM-Swiss 2025"]
[Site "Fagernes"]
[Date "2025.04.16"]
[Round "4.21"]
[White "Hedman, Erik"]
[Black "Torfoss, Sivert Schanche"]
[Result "1-0"]
[Annotator "RC"]
[ECO "C50"]
[WhiteElo "2276"]
[BlackElo "2141"]
[PlyCount "117"]
[EventDate "2025.04.12"]
[EventCountry "NOR"]
[SourceTitle "playchess.com"]
[Source "ChessBase"]
[SourceQuality "1"]
[TimeControl "40/6000+30:2400+30"]

1. e4 {[%emt 0:01:19]} e5 {[%emt 0:00:05]} 2. Nf3 {[%emt 0:00:07]} Nc6 {[%emt 0:00:06]} 3. Bc4 {[%emt 0:00:05]} Bc5 {[%emt 0:00:07]} 4. d3 {[%emt 0:00:17]} Nf6 {[%emt 0:00:18]} 5. Bg5 {[%emt 0:00:21]} h6 {[%emt 0:00:15]} 6. Bh4 {[%emt 0:00:06]} O-O {[%emt 0:01:33]} 7. O-O {[%emt 0:05:16]} Be7 {[%emt 0:00:34]} 8. Re1 {[%emt 0:00:49]} d6 {[%emt 0:01:06]} 9. a3 {[%emt 0:00:09]} Nh5 {[%emt 0:09:13]} 10. Bxe7 {[%emt 0:06:05]} Qxe7 {[%emt 0:00:17]} 11. Nc3 {[%emt 0:00:32]} Nf6 {[%emt 0:16:22]} 12. h3 {[%emt 0:16:14]} Be6 {[%emt 0:03:18]} 13. Nd5 {[%emt 0:02:28]} Qd8 {[%emt 0:02:29]} 14. d4 {[%emt 0:04:29]} exd4 {[%emt 0:15:25]} 15. Nxd4 {[%emt 0:00:55]} Bxd5 {[%emt 0:06:25]} 16. Bxd5 {[%emt 0:02:05]} Nxd4 {[%emt 0:10:53]} 17. Qxd4 {[%emt 0:00:17]} Qd7 {[%emt 0:00:18]} 18. Bb3 {[%emt 0:06:58]} Rfe8 {[%emt 0:01:26]} 19. Rad1 {[%emt 0:01:26]} Qc6 {[%emt 0:04:05]} 20. e5 {[%emt 0:03:07]} dxe5 {[%emt 0:02:26]} 21. Rxe5 {[%emt 0:00:05]} Rxe5 {[%emt 0:01:10]} 22. Qxe5 {[%emt 0:00:07]} Re8 {[%emt 0:01:08]} 23. Qf4 {[%emt 0:07:53]} a6 {[%emt 0:10:57]} 24. Kh2 {[%emt 0:10:17]} b6 {[%emt 0:07:39]} 25. Rd3 {[%emt 0:08:46]} Re7 {[%emt 0:09:14]} 26. Rd8+ {[%emt 0:06:04]} Ne8 {[%emt 0:00:46]} 27. Bd5 {[%emt 0:11:06]} Qg6 {[%emt 0:00:10]} 28. Qf3 {[%emt 0:03:40]} Kh7 {[%emt 0:01:23]} 29. Bc4 {[%emt 0:00:15]} Nd6 {[%emt 0:02:43]} 30. Bd3 {[%emt 0:02:40]} Ne4 {[%emt 0:02:18]} 31. Bxa6 {[%emt 0:00:50]} f5 {[%emt 0:00:53]} 32. Bd3 {[%emt 0:02:21]} Qf6 {[%emt 0:00:46]} 33. c3 {[%emt 0:04:04]} Nd6 {[%emt 0:00:38]} 34. g3 {[%emt 0:01:28]} Qe5 {[%emt 0:00:29]} 35. Kg2 {[%emt 0:00:13]} g6 {[%emt 0:00:26]} 36. h4 {[%emt 0:00:18]} h5 {[%emt 0:00:34]} 37. Ra8 {[%emt 0:01:38]} Re8 {[%emt 0:00:31]} 38. Ra7 {[%emt 0:00:23]} Re7 {[%emt 0:00:12]} 39. a4 {[%emt 0:00:43]} Nf7 {[%emt 0:00:47]} 40. Bc4 {[%emt 0:00:44]} Nd6 {[%emt 0:00:32]} 41. Qd5 {[%emt 0:41:36]} Qe4+ {[%emt 0:14:10]} 42. Qxe4 {[%emt 0:00:00]} fxe4 {[%emt 0:00:08]} 43. Ba6 {[%emt 0:00:00]} e3 {[%emt 0:01:48]} 44. fxe3 {[%emt 0:00:00]} Nf5 {[%emt 0:01:13]} 45. Kf2 {[%emt 0:00:00]} Nxe3 {[%emt 0:02:52]} 46. Be2 {[%emt 0:00:00]} Nf5 {[%emt 0:03:07]} 47. b4 {[%emt 0:00:00]} Nd6 {[%emt 0:10:44]} 48. Bd3 {[%emt 0:00:00]} Rf7+ {[%emt 0:02:01]} 49. Ke3 {[%emt 0:00:00]} Re7+ {[%emt 0:00:26]} 50. Kf4 {[%emt 0:00:00]} Rd7 {[%emt 0:03:28]} 51. Ke3 {[%emt 0:00:00]} Nf7 {[%emt 0:03:36]} 52. a5 {[%emt 0:00:00]} bxa5 {[%emt 0:00:16]} 53. bxa5 {[%emt 0:00:00]} Ne5 {[%emt 0:00:12]} 54. Bb5 {[%emt 0:00:00]} Re7 {[%emt 0:00:24]} 55. Kd2 {[%emt 0:00:00]} Rf7 {[%emt 0:01:27]} 56. a6 {[%emt 0:00:00]} Kh6 {[%emt 0:00:38]} 57. Rb7 {[%emt 0:00:00]} Rf2+ {[%emt 0:00:36]} 58. Be2 {[%emt 0:00:00]} Nc4+ {[%emt 0:01:29]} 59. Ke1 {[%emt 0:00:00]} 1-0

[Event "Fagernes Chess GM-Swiss 2025"]
[Site "Fagernes"]
[Date "2025.04.16"]
[Round "4.22"]
[White "Ostensen, Nicolai Maxime"]
[Black "Khoo-Thwe, Louis"]
[Result "0-1"]
[Annotator "RC"]
[ECO "C97"]
[WhiteElo "2260"]
[BlackElo "2118"]
[PlyCount "118"]
[EventDate "2025.04.12"]
[EventCountry "NOR"]
[SourceTitle "playchess.com"]
[Source "ChessBase"]
[SourceQuality "1"]
[TimeControl "40/6000+30:2400+30"]

1. e4 {[%emt 0:01:49]} e5 {[%emt 0:00:02]} 2. Nf3 {[%emt 0:00:21]} Nc6 {[%emt 0:00:07]} 3. Bb5 {[%emt 0:00:05]} a6 {[%emt 0:00:10]} 4. Ba4 {[%emt 0:00:06]} Nf6 {[%emt 0:00:11]} 5. O-O {[%emt 0:00:07]} Be7 {[%emt 0:00:12]} 6. Re1 {[%emt 0:00:06]} b5 {[%emt 0:00:05]} 7. Bb3 {[%emt 0:00:07]} d6 {[%emt 0:00:06]} 8. c3 {[%emt 0:00:05]} O-O {[%emt 0:00:07]} 9. h3 {[%emt 0:00:04]} Na5 {[%emt 0:00:05]} 10. Bc2 {[%emt 0:00:08]} c5 {[%emt 0:00:05]} 11. d4 {[%emt 0:00:12]} Qc7 {[%emt 0:00:06]} 12. d5 {[%emt 0:00:08]} Ne8 {[%emt 0:00:59]} 13. a4 {[%emt 0:02:09]} Rb8 {[%emt 0:01:20]} 14. axb5 {[%emt 0:05:47]} axb5 {[%emt 0:00:08]} 15. b3 {[%emt 0:04:42]} Bd7 {[%emt 0:00:29]} 16. Nbd2 {[%emt 0:03:12]} g6 {[%emt 0:03:19]} 17. Nf1 {[%emt 0:02:50]} Ng7 {[%emt 0:01:01]} 18. Bh6 {[%emt 0:06:07]} f6 {[%emt 0:02:13]} 19. g4 {[%emt 0:04:16]} Nb7 {[%emt 0:02:21]} 20. Ng3 {[%emt 0:03:13]} Nd8 {[%emt 0:01:09]} 21. Nd2 {[%emt 0:12:32]} Nf7 {[%emt 0:00:40]} 22. Be3 {[%emt 0:00:51]} Ra8 {[%emt 0:01:47]} 23. Bd3 {[%emt 0:13:40]} Rxa1 {[%emt 0:09:42]} 24. Qxa1 {[%emt 0:00:07]} Qb7 {[%emt 0:01:27]} 25. Qb2 {[%emt 0:01:14]} Ng5 {[%emt 0:05:48]} 26. Bxg5 {[%emt 0:08:46]} fxg5 {[%emt 0:01:17]} 27. Ra1 {[%emt 0:00:32]} h5 {[%emt 0:11:45]} 28. Qa2 {[%emt 0:08:45]} h4 {[%emt 0:12:53]} 29. Ne2 {[%emt 0:03:34]} Rb8 {[%emt 0:02:39]} 30. Nf3 {[%emt 0:03:46]} Rf8 {[%emt 0:02:31]} 31. Kg2 {[%emt 0:04:32]} Qc8 {[%emt 0:05:22]} 32. Nh2 {[%emt 0:00:42]} Qb7 {[%emt 0:04:13]} 33. Ng1 {[%emt 0:03:17]} Ne8 {[%emt 0:12:11]} 34. Qa7 {[%emt 0:02:35]} Qc7 {[%emt 0:04:58]} 35. Ngf3 {[%emt 0:02:05]} Bf6 {[%emt 0:05:17]} 36. Qa2 {[%emt 0:07:14]} Be7 {[%emt 0:02:38]} 37. Qa7 {[%emt 0:01:09]} Bf6 {[%emt 0:03:12]} 38. Ra6 {[%emt 0:01:28]} Be7 {[%emt 0:03:32]} 39. Nf1 {[%emt 0:03:20]} Qc8 {[%emt 0:06:42]} 40. N1d2 {[%emt 0:03:17]} Nc7 {[%emt 0:06:23]} 41. Rb6 {[%emt 0:27:20]} Bxg4 {[%emt 0:02:50]} 42. hxg4 {[%emt 0:00:27]} Qxg4+ {[%emt 0:00:14]} 43. Kf1 {[%emt 0:01:00]} Rxf3 {[%emt 0:01:37]} 44. Nxf3 {[%emt 0:01:23]} Qxf3 {[%emt 0:00:25]} 45. Qxc7 {[%emt 0:05:20]} h3 {[%emt 0:07:31]} 46. Rb8+ {[%emt 0:00:24]} Kf7 {[%emt 0:04:34]} 47. Bc2 {[%emt 0:02:01]} h2 {[%emt 0:01:35]} 48. Rh8 {[%emt 0:00:20]} h1=R+ {[%emt 0:00:46]} 49. Rxh1 {[%emt 0:00:05]} Qxh1+ {[%emt 0:00:07]} 50. Ke2 {[%emt 0:00:03]} Qc1 {[%emt 0:02:26]} 51. Bd1 {[%emt 0:01:27]} Qb1 {[%emt 0:01:59]} 52. f3 {[%emt 0:00:39]} g4 {[%emt 0:01:39]} 53. fxg4 {[%emt 0:01:54]} Qxe4+ {[%emt 0:00:21]} 54. Kd2 {[%emt 0:00:54]} Qxd5+ {[%emt 0:00:30]} 55. Kc1 {[%emt 0:00:04]} e4 {[%emt 0:03:07]} 56. Qa7 {[%emt 0:02:00]} Ke6 {[%emt 0:02:32]} 57. Bc2 {[%emt 0:00:17]} Bg5+ {[%emt 0:04:15]} 58. Kb1 {[%emt 0:00:20]} Qd2 {[%emt 0:00:50]} 59. Bxe4 {[%emt 0:00:48]} Qe1+ {[%emt 0:00:16]} 0-1

[Event "Fagernes Chess GM-Swiss 2025"]
[Site "Fagernes"]
[Date "2025.04.16"]
[Round "4.23"]
[White "Arvola, Daniel"]
[Black "Pang, Ethan"]
[Result "0-1"]
[Annotator "RC"]
[ECO "B29"]
[WhiteElo "2088"]
[BlackElo "2257"]
[PlyCount "96"]
[EventDate "2025.04.12"]
[EventCountry "NOR"]
[SourceTitle "playchess.com"]
[Source "ChessBase"]
[SourceQuality "1"]
[TimeControl "40/6000+30:2400+30"]

1. e4 {[%emt 0:00:05]} c5 {[%emt 0:07:33]} 2. Nf3 {[%emt 0:00:14]} Nf6 {[%emt 0:00:32]} 3. Nc3 {[%emt 0:00:45]} Nc6 {[%emt 0:00:33]} 4. d4 {[%emt 0:00:09]} d5 {[%emt 0:00:07]} 5. exd5 {[%emt 0:18:44]} Nxd5 {[%emt 0:00:08]} 6. Bb5 {[%emt 0:00:16]} Bg4 {[%emt 0:36:51]} 7. O-O {[%emt 0:10:32]} a6 {[%emt 0:07:17]} 8. Be2 {[%emt 0:07:13]} e6 {[%emt 0:04:53]} 9. Nxd5 {[%emt 0:04:35]} Qxd5 {[%emt 0:02:12]} 10. c4 {[%emt 0:03:13]} Qd6 {[%emt 0:03:08]} 11. d5 {[%emt 0:02:00]} exd5 {[%emt 0:10:32]} 12. cxd5 {[%emt 0:01:12]} Nb4 {[%emt 0:04:23]} 13. h3 {[%emt 0:08:48]} Bf5 {[%emt 0:07:31]} 14. Nh4 {[%emt 0:09:25]} Bc2 {[%emt 0:02:22]} 15. Qe1 {[%emt 0:00:26]} Be7 {[%emt 0:01:19]} 16. Bg4 {[%emt 0:08:06]} Qxd5 {[%emt 0:08:02]} 17. a3 {[%emt 0:02:52]} Nc6 {[%emt 0:02:21]} 18. Bf3 {[%emt 0:03:28]} Qd7 {[%emt 0:01:39]} 19. Bg5 {[%emt 0:04:06]} f6 {[%emt 0:02:02]} 20. Bh5+ {[%emt 0:00:55]} Kd8 {[%emt 0:00:36]} 21. Bg4 {[%emt 0:00:53]} Qd6 {[%emt 0:01:16]} 22. Be3 {[%emt 0:01:43]} h5 {[%emt 0:03:02]} 23. Nf5 {[%emt 0:00:41]} Bxf5 {[%emt 0:01:22]} 24. Bxf5 {[%emt 0:00:06]} Qe5 {[%emt 0:00:16]} 25. Bg6 {[%emt 0:04:22]} Bd6 {[%emt 0:00:31]} 26. f4 {[%emt 0:00:36]} Qe7 {[%emt 0:01:12]} 27. Rd1 {[%emt 0:01:33]} Kc7 {[%emt 0:00:25]} 28. Qc3 {[%emt 0:00:27]} Rad8 {[%emt 0:00:56]} 29. Rfe1 {[%emt 0:01:01]} Qf8 {[%emt 0:00:48]} 30. Be4 {[%emt 0:02:15]} f5 {[%emt 0:00:45]} 31. Bd5 {[%emt 0:01:43]} Qf6 {[%emt 0:00:33]} 32. Qc2 {[%emt 0:00:21]} Rhe8 {[%emt 0:00:42]} 33. b4 {[%emt 0:01:13]} cxb4 {[%emt 0:00:11]} 34. Bxc6 {[%emt 0:03:54]} bxc6 {[%emt 0:00:05]} 35. Qc4 {[%emt 0:00:16]} Kb7 {[%emt 0:00:53]} 36. Rc1 {[%emt 0:00:21]} Bf8 {[%emt 0:00:43]} 37. axb4 {[%emt 0:01:28]} Re4 {[%emt 0:00:18]} 38. Qc2 {[%emt 0:02:47]} Rde8 {[%emt 0:00:41]} 39. Qd3 {[%emt 0:01:09]} Qd6 {[%emt 0:00:34]} 40. Qb3 {[%emt 0:00:43]} Qe6 {[%emt 0:00:15]} 41. Qxe6 {[%emt 0:45:48]} R8xe6 {[%emt 0:40:10]} 42. Kf2 {[%emt 0:00:00]} Bxb4 {[%emt 0:00:00]} 43. Re2 {[%emt 0:00:00]} a5 {[%emt 0:00:00]} 44. Kf3 {[%emt 0:00:00]} c5 {[%emt 0:00:00]} 45. Rd1 {[%emt 0:00:00]} Kc6 {[%emt 0:00:00]} 46. Rd8 {[%emt 0:00:00]} Re8 {[%emt 0:00:00]} 47. Rd1 {[%emt 0:00:00]} c4 {[%emt 0:00:00]} 48. Rb1 {[%emt 0:00:00]} Bc5 {[%emt 0:00:00]} 0-1